fUST/lending_fUST_20260115
["ID","MTS","AMOUNT","RATE_DAILY","PERIOD"]
[401969627,1768427456412,-1600.0,0.00024171,2]
[401969628,1768427456421,-900.0,0.00024171,2]
[401969629,1768427456430,-800.0,0.0002418,2]
[401969630,1768427456439,-1322.09450288,0.00024192,76]
[401969631,1768427456448,-23398.38608296,0.000242,2]
[401969632,1768427456457,-180.20904249,0.00024204,2]
[401969633,1768427456466,-1600.0,0.00024224,2]
[401969634,1768427456475,-1322.09450288,0.00024231,79]
[401969635,1768427456484,-293.85068442,0.00024241,2]
[401969636,1768427456493,-1322.09450288,0.00024271,81]
[401969637,1768427456503,-900.0,0.00024271,2]
[401969638,1768427456512,-823.35031831,0.0002429,2]
[401969639,1768427456521,-900.0,0.00024302,2]
[401969640,1768427456530,-1000.0,0.00024305,10]
[401969641,1768427456539,-1000.0,0.00024305,10]
[401969642,1768427456548,-1322.09450288,0.0002431,83]
[401969643,1768427456557,-5888.0,0.00024348,2]
[401969644,1768427456569,-1322.09450288,0.00024349,85]
[401969645,1768427456579,-900.0,0.0002437,2]
[401969646,1768427456588,-800.0,0.00024377,2]
[401969647,1768427456598,-900.0,0.00024379,2]
[401969648,1768427456607,-1322.09450288,0.00024388,87]
[401969649,1768427456616,-500.0,0.00024398,2]
[401969650,1768427456625,-800.0,0.00024405,2]
[401969651,1768427456634,-1322.09450288,0.00024428,90]
[401969652,1768427456643,-194.2006467,0.00024438,2]
[401969653,1768427456652,-194.2006467,0.00024438,2]
[401969654,1768427456663,-194.2006467,0.00024438,2]
[401969655,1768427456673,-194.2006467,0.00024438,2]
[401969656,1768427456682,-194.2006467,0.00024438,2]
[401969657,1768427456691,-1600.0,0.00024444,2]
[401969658,1768427456701,-629.0,0.00024455,2]
[401969659,1768427456710,-2147.0,0.00024455,2]
[401969660,1768427456721,-1367.0,0.00024455,2]
[401969661,1768427456730,-800.0,0.00024457,2]
[401969662,1768427456740,-1322.09450288,0.00024467,92]
[401969663,1768427456749,-800.0,0.00024473,2]
[401969664,1768427456758,-900.0,0.00024492,2]
[401969665,1768427456767,-5888.0,0.00024495,2]
[401969666,1768427456776,-1126.0,0.000245,5]
[401969667,1768427456786,-1322.09450288,0.00024506,94]
[401969668,1768427456795,-800.0,0.00024527,2]
[401969669,1768427456804,-1600.0,0.00024536,2]
[401969670,1768427456813,-500.0,0.00024544,2]
[401969671,1768427456822,-1322.09450288,0.00024546,96]
[401969672,1768427456831,-900.0,0.00024547,2]
[401969673,1768427456840,-500.0,0.00024551,2]
[401969674,1768427456850,-2000.0,0.0002456,7]
[401969675,1768427456859,-813.50644317,0.00024561,19]
[401969676,1768427456868,-500.0,0.00024562,2]
[401969677,1768427456877,-1600.0,0.0002458,2]
[401969678,1768427456887,-1600.0,0.00024581,2]
[401969679,1768427456896,-1322.09450288,0.00024585,98]
[401969680,1768427456906,-800.0,0.00024585,2]
[401969681,1768427456916,-2322.78,0.000246,7]
[401969682,1768427456927,-636.862,0.00024613,7]
[401969683,1768427456936,-1322.09450288,0.00024624,101]
[401969684,1768427456944,-2004.0,0.00024626,2]
[401969685,1768427456954,-800.0,0.0002463,2]
[401969686,1768427456963,-500.0,0.00024634,2]
[401969687,1768427456972,-1600.0,0.00024638,2]
[401969688,1768427456982,-800.0,0.00024638,2]
[401969689,1768427456991,-156856.39382059,0.0002465,2]
[401969690,1768427457001,-514.22907277,0.0002465,2]
[401969691,1768427457011,-1600.0,0.0002465,2]
[401969692,1768427457025,-286.74681137,0.00024658,2]
[401969693,1768427457035,-380.0,0.00024658,2]
[401969694,1768427457045,-500.0,0.00024658,2]
[401969695,1768427457055,-1322.09450288,0.00024663,103]
[401969696,1768427457067,-514.84070869,0.00024664,2]
[401969697,1768427457077,-2487.15318209,0.00024664,2]
[401969698,1768427457087,-187.78006525,0.00024664,2]
[401969699,1768427457098,-1600.0,0.00024666,2]
[401969700,1768427457108,-791.34915639,0.00024671,2]
[401969701,1768427457117,-1600.0,0.00024674,2]
[401969702,1768427457127,-522.88356834,0.00024689,2]
[401969703,1768427457136,-1600.0,0.00024695,2]
[401969704,1768427457146,-3915.7,0.000247,14]
[401969705,1768427457155,-223.89,0.000247,7]
[401969706,1768427457164,-196.5,0.000247,7]
[401969707,1768427457174,-22715.14810118,0.000247,3]
[401969708,1768427457184,-1322.09450288,0.00024703,105]
[401969709,1768427457194,-1600.0,0.0002473,2]
[401969710,1768427457204,-800.0,0.00024737,2]
[401969711,1768427457213,-1322.09450288,0.00024742,107]
[401969712,1768427457223,-900.0,0.00024755,2]
[401969713,1768427457233,-1600.0,0.00024762,2]
[401969714,1768427457242,-5000.0,0.00024768,2]
[401969715,1768427457263,-500.0,0.00024773,2]
[401969716,1768427457272,-900.0,0.00024773,2]
[401969717,1768427457282,-16836.12060946,0.00024774,2]
[401969718,1768427457292,-1322.09450288,0.00024781,110]
[401969719,1768427457301,-500.0,0.00024795,2]
[401969720,1768427457311,-24837.158848,0.000248,2]
[401969721,1768427457320,-1600.0,0.00024845,2]
[401969722,1768427457330,-900.0,0.00024859,2]
[401969723,1768427457340,-500.0,0.00024863,2]
[401969724,1768427457349,-151.0,0.00024875,7]
[401969725,1768427457359,-151.0,0.00024875,7]
[401969726,1768427457368,-910.867725,0.00024875,7]
[401969727,1768427457377,-910.867725,0.00024875,7]
[401969728,1768427457387,-910.867725,0.00024875,7]
[401969729,1768427457397,-910.867719,0.00024875,7]
[401969730,1768427457406,-151.0,0.00024875,7]
[401969731,1768427457415,-714.6,0.00024885,2]
[401969732,1768427457426,-900.0,0.00024894,2]
[401969733,1768427457435,-29614.9,0.000249,2]
[401969734,1768427457444,-580175.276332,0.000249,2]
[401969735,1768427457454,-14560.639416,0.00024902,30]
[401969736,1768427457463,-2923.694239,0.00024902,30]
[401969737,1768427457473,-186.0,0.00024932,7]
[401969738,1768427457482,-500.0,0.00024932,2]
[401969739,1768427457492,-900.0,0.00024943,2]
[401969740,1768427457501,-800.0,0.00024948,2]
[401969741,1768427457511,-1600.0,0.00024951,2]
[401969742,1768427457520,-160.0,0.00024952,3]
[401969743,1768427457530,-1600.0,0.00024962,2]
[401969744,1768427457539,-800.0,0.00024973,2]
[401969745,1768427457549,-599.99999956,0.00024976,2]
[401969746,1768427457559,-900.0,0.00024977,2]
[401969747,1768427457568,-459.20310857,0.0002498,2]
[401969748,1768427457577,-1836.81243428,0.0002498,2]
[401969749,1768427457587,-4132.82797712,0.0002498,2]
[401969750,1768427457598,-7347.24973711,0.0002498,2]
[401969751,1768427457607,-330.4854128,0.0002498,2]
[401969752,1768427457619,-1321.94165122,0.0002498,2]
[401969753,1768427457629,-2974.36871524,0.0002498,2]
[401969754,1768427457639,-5287.76660488,0.0002498,2]
[401969755,1768427457649,-8262.13532012,0.0002498,2]
[401969756,1768427457658,-1307.80485183,0.0002498,2]
[401969757,1768427457669,-5231.2194073,0.0002498,2]
[401969758,1768427457680,-566.07128962,0.0002498,2]
[401969759,1768427457692,-2264.28515846,0.0002498,2]
[401969760,1768427457705,-5094.64160654,0.0002498,2]
[401969761,1768427457716,-9057.14063385,0.0002498,2]
[401969762,1768427457727,-777.71369928,0.0002498,2]
[401969763,1768427457736,-3110.85479711,0.0002498,2]
[401969764,1768427457746,-723.07819164,0.0002498,2]
[401969765,1768427457760,-2892.31276656,0.0002498,2]
[401969766,1768427457772,-761.97320401,0.0002498,2]
[401969767,1768427457784,-3047.89281604,0.0002498,2]
[401969768,1768427457794,-650.74912058,0.0002498,2]
[401969769,1768427457804,-2602.9964823,0.0002498,2]
[401969770,1768427457814,-5856.74208518,0.0002498,2]
[401969771,1768427457823,-500.0,0.00024986,2]
[401969772,1768427457833,-243.0,0.00024986,14]
[401969773,1768427457843,-1041.66666667,0.00025,30]
[401969774,1768427457853,-155485.69389668,0.00025,15]
[401969775,1768427457863,-1041.66666667,0.00025,7]
[401969776,1768427457874,-186.0,0.00025,7]
[401969777,1768427457885,-1041.66666667,0.00025,3]
[401969778,1768427457894,-1041.66666667,0.00025,30]
[401969779,1768427457903,-1600.0,0.00025003,7]
[401969780,1768427457913,-800.0,0.00025043,7]
[401969781,1768427457923,-1700.0,0.00025065,7]
[401969782,1768427457932,-500.0,0.00025069,2]
[401969783,1768427457942,-1600.0,0.00025084,7]
[401969784,1768427457952,-1000.0,0.000251,7]
[401969785,1768427457962,-3100.0,0.00025123,7]
[401969786,1768427457971,-1296.0967193,0.00025134,7]
[401969787,1768427457981,-250.0,0.00025205,2]
[401969788,1768427457990,-500.0,0.00025206,2]
[401969789,1768427458000,-533.88981491,0.00025212,2]
[401969790,1768427458010,-2579.17784983,0.00025212,2]
[401969791,1768427458022,-194.72792766,0.00025212,2]
[401969792,1768427458238,-194.2006467,0.0002526,2]
[401969793,1768427458248,-194.2006467,0.0002526,2]
[401969794,1768427458258,-2004.0,0.00025266,2]
[401969795,1768427458267,-187.0,0.00025284,7]
[401969796,1768427458278,-2004.0,0.00025295,7]
[401969797,1768427458288,-187.0,0.00025315,2]
[401969798,1768427458297,-235.563767,0.00025342,2]
[401969799,1768427458306,-500.0,0.00025343,2]
[401969800,1768427458315,-2004.0,0.00025402,2]
[401969801,1768427458325,-2000.0,0.00025417,7]
[401969802,1768427458335,-800.0,0.0002542,2]
[401969803,1768427458344,-813.50644317,0.00025446,20]
[401969804,1768427458355,-1296.57348302,0.00025479,7]
[401969805,1768427458364,-5181.10763814,0.00025479,7]
[401969806,1768427458373,-1828.08467195,0.00025479,7]
[401969807,1768427458383,-3885.26491498,0.00025479,7]
[401969808,1768427458392,-1710.74801923,0.00025479,7]
[401969809,1768427458402,-6836.14908483,0.00025479,7]
[401969810,1768427458411,-1699.65909046,0.00025479,7]
[401969811,1768427458420,-3074.11069876,0.00025479,7]
[401969812,1768427458430,-1598.31893539,0.00025479,7]
[401969813,1768427458441,-6386.8824658,0.00025479,7]
[401969814,1768427458450,-1791.08524895,0.00025479,7]
[401969815,1768427458460,-4283.00103547,0.00025479,7]
[401969816,1768427458471,-856.896701,0.00025479,7]
[401969817,1768427458482,-856.896701,0.00025479,7]
[401969818,1768427458494,-856.896701,0.00025479,7]
[401969819,1768427458503,-856.896701,0.00025479,7]
[401969820,1768427458513,-856.896701,0.00025479,7]
[401969821,1768427458523,-856.896701,0.00025479,7]
[401969822,1768427458534,-856.896701,0.00025479,7]
[401969823,1768427458545,-856.896701,0.00025479,7]
[401969824,1768427458554,-856.896701,0.00025479,7]
[401969825,1768427458564,-856.896701,0.00025479,7]
[401969826,1768427458575,-856.896701,0.00025479,7]
[401969827,1768427458584,-856.896701,0.00025479,7]
[401969828,1768427458595,-856.896701,0.00025479,7]
[401969829,1768427458606,-856.896701,0.00025479,7]
[401969830,1768427458617,-856.896701,0.00025479,7]
[401969831,1768427458627,-856.896701,0.00025479,7]
[401969832,1768427458637,-856.896701,0.00025479,7]
[401969833,1768427458646,-856.896701,0.00025479,7]
[401969834,1768427458656,-856.896701,0.00025479,7]
[401969835,1768427458666,-856.8967,0.00025479,7]
[401969836,1768427458676,-500.0,0.0002548,2]
[401969837,1768427458686,-160.0,0.00025492,4]
[401969838,1768427458696,-778.0,0.000255,2]
[401969839,1768427458705,-2004.0,0.00025509,2]
[401969840,1768427458714,-1534.0,0.00025519,2]
[401969841,1768427458726,-2322.78,0.000256,7]
[401969842,1768427458736,-500.0,0.00025617,2]
[401969843,1768427458746,-5888.0,0.00025676,2]
[401969844,1768427458756,-11357.54,0.000257,3]
[401969845,1768427458766,-187.0,0.00025746,2]
[401969846,1768427458777,-187.0,0.00025753,2]
[401969847,1768427458786,-350.0,0.00025753,2]
[401969848,1768427458796,-500.0,0.00025754,2]
[401969849,1768427458806,-553.64373807,0.0002576,2]
[401969850,1768427458816,-2674.60743027,0.0002576,2]
[401969851,1768427458826,-201.93286099,0.0002576,2]
[401969852,1768427458836,-3915.7,0.000258,14]
[401969853,1768427458845,-223.89,0.000258,7]
[401969854,1768427458854,-196.5,0.000258,7]
[401969855,1768427458863,-187.0,0.00025843,2]
[401969856,1768427458873,-187.0,0.00025859,2]
[401969857,1768427458882,-5888.0,0.00025872,7]
[401969858,1768427458891,-10945.40487951,0.00025875,2]
[401969859,1768427458900,-184.3704767,0.00025877,2]
[401969860,1768427458909,-293.8463996,0.00025877,2]
[401969861,1768427458918,-155.8641931,0.00025877,2]
[401969862,1768427458928,-602.0059149,0.00025877,2]
[401969863,1768427458937,-1217.0711899,0.00025877,2]
[401969864,1768427458946,-589.69745305,0.0002588,5]
[401969865,1768427458956,-186.0,0.0002589,7]
[401969866,1768427458966,-500.0,0.00025891,2]
[401969867,1768427458976,-232.431,0.00025892,2]
[401969868,1768427458984,-244.039,0.00025892,2]
[401969869,1768427458994,-275.706,0.00025892,2]
[401969870,1768427459003,-261.564,0.00025892,2]
[401969871,1768427459013,-267.537,0.00025892,2]
[401969872,1768427459033,-167.77,0.000259,7]
[401969873,1768427459043,-4637.0,0.0002596,2]
[401969874,1768427459053,-5888.0,0.00025997,2]
[401969875,1768427459063,-6803.24817253,0.00026,10]
[401969876,1768427459073,-530.08019871,0.00026,2]
[401969877,1768427459083,-38572.22065609,0.00026,30]
[401969878,1768427459094,-896.18087791,0.00026,2]
[401969879,1768427459104,-161.0,0.00026,5]
[401969880,1768427459114,-1041.66666667,0.00026,7]
[401969881,1768427459123,-1041.66666667,0.00026,10]
[401969882,1768427459133,-4332.57,0.00026027,2]
[401969883,1768427459144,-500.0,0.00026028,2]
[401969884,1768427459153,-160.0,0.00026031,5]
[401969885,1768427459164,-5000.0,0.00026068,2]
[401969886,1768427459175,-244.0,0.00026082,14]
[401969887,1768427459185,-187.0,0.00026091,2]
[401969888,1768427459194,-29614.9,0.000261,2]
[401969889,1768427459203,-714.6,0.00026127,2]
[401969890,1768427459213,-194.72949231,0.0002616,2]
[401969891,1768427459222,-187.0,0.00026163,2]
[401969892,1768427459232,-500.0,0.00026165,2]
[401969893,1768427459241,-4637.0,0.00026168,2]
[401969894,1768427459251,-2000.0,0.00026275,7]
[401969895,1768427459261,-888.92689234,0.0002629,2]
[401969896,1768427459270,-450.0,0.00026301,2]
[401969897,1768427459280,-500.0,0.00026302,2]
[401969898,1768427459290,-574.12855637,0.00026308,2]
[401969899,1768427459300,-2773.56790519,0.00026308,2]
[401969900,1768427459311,-209.40437684,0.00026308,2]
[401969901,1768427459320,-813.50644317,0.00026331,22]
[401969902,1768427459330,-500.0,0.00026439,2]
[401969903,1768427459340,-4499.1178549,0.00026448,2]
[401969904,1768427459349,-187.0,0.00026492,2]
[401969905,1768427459359,-5888.0,0.00026518,2]
[401969906,1768427459368,-200.0,0.0002654,14]
[401969907,1768427459378,-160.0,0.0002657,6]
[401969908,1768427459387,-5888.0,0.00026579,2]
[401969909,1768427459397,-2322.78,0.000266,7]
[401969910,1768427459407,-604.60519035,0.000266,2]
[401969911,1768427459418,-1000.0,0.00026736,30]
[401969912,1768427459428,-1000.0,0.00026736,30]
[401969913,1768427459438,-579.0,0.00026736,30]
[401969914,1768427459448,-4637.0,0.00026738,7]
[401969915,1768427459459,-800.0,0.00026784,2]
[401969916,1768427459470,-504.68554132,0.00026792,10]
[401969917,1768427459480,-550.0,0.00026849,2]
[401969918,1768427459492,-595.37131296,0.00026856,2]
[401969919,1768427459504,-2876.18991768,0.00026856,2]
[401969920,1768427459514,-217.15233878,0.00026856,2]
[401969921,1768427459523,-3915.7,0.000269,14]
[401969922,1768427459533,-223.89,0.000269,7]
[401969923,1768427459545,-196.5,0.000269,7]
[401969924,1768427459556,-187.0,0.00026911,2]
[401969925,1768427459566,-500.0,0.0002695,10]
[401969926,1768427459576,-153.0,0.00026959,2]
[401969927,1768427459585,-153.0,0.00026959,2]
[401969928,1768427459595,-153.0,0.00026959,2]
[401969929,1768427459604,-600.0,0.00027,14]
[401969930,1768427459614,-205.35951231,0.00027,2]
[401969931,1768427459626,-160.0,0.00027109,7]
[401969932,1768427459637,-2000.0,0.00027133,7]
[401969933,1768427459647,-272.0,0.00027178,14]
[401969934,1768427459657,-188.0,0.00027185,7]
[401969935,1768427459666,-813.50644317,0.00027216,23]
[401969936,1768427459676,-10000.0,0.00027297,2]
[401969937,1768427459685,-29614.9,0.000273,2]
[401969938,1768427459694,-5000.0,0.00027368,2]
[401969939,1768427459703,-714.6,0.00027368,5]
[401969940,1768427459713,-394.15965016,0.0002739,7]
[401969941,1768427459722,-3000.0,0.00027396,14]
[401969942,1768427459731,-4034.77731978,0.00027397,7]
[401969943,1768427459952,-151.0,0.00019178,2]
[401969944,1768427459963,-500.0,0.0002302,2]
[401969945,1768427459972,-500.0,0.0002302,2]
[401969946,1768427459981,-261.730243,0.00024142,2]
[401969947,1768427459990,-793.00955087,0.00027397,7]
[401969948,1768427460002,-1014.13869183,0.00027397,7]
[401969949,1768427460127,-151.0,0.00019178,2]
[401969950,1768427460136,-153.077623,0.00019178,2]
[401969951,1768427460146,-151.0,0.00021918,2]
[401969952,1768427460155,-151.0,0.00023956,2]
[401969953,1768427460164,-151.0,0.00024142,2]
[401969954,1768427460174,-475.631669,0.00027397,7]
[401969955,1768427460185,-5793.460158,0.00027397,7]
[401969995,1768428632421,-599.0,0.00012682,2]
[401969996,1768428632430,-350.07501637,0.00012682,2]
[401969998,1768428632440,-547.81476213,0.00013,2]
[401970000,1768428632452,-573.18523787,0.00013,2]
[401970001,1768428632462,-70.58616681,0.00013172,2]
[401970002,1768428632484,-229.41383319,0.00013172,2]
[401970003,1768428632494,-210.99952006,0.00013172,2]
[401970005,1768428632506,-989.00047994,0.00013172,2]
[401970006,1768428632515,-8540.05724792,0.00013173,2]
[401970007,1768428632524,-500.0,0.0001327,2]
[401970008,1768428632533,-465.55589705,0.0001327,2]
[401970009,1768428632542,-378.2986996,0.0001327,2]
[401970010,1768428632551,-500.0,0.0001327,2]
[401970011,1768428632562,-500.0,0.0001327,2]
[401970012,1768428632571,-550.0,0.0001327,2]
[401970013,1768428632580,-331.0114431,0.0001327,2]
[401970014,1768428632591,-229.72652679,0.0001327,2]
[401970015,1768428632600,-356.83568208,0.0001327,2]
[401970016,1768428632611,-143.16431792,0.0001327,2]
[401970017,1768428632620,-500.0,0.0001327,2]
[401970018,1768428632629,-500.0,0.0001327,2]
[401970019,1768428632637,-281.62370299,0.0001327,2]
[401970020,1768428632646,-500.0,0.0001327,2]
[401970021,1768428632656,-500.0,0.0001327,2]
[401970022,1768428632665,-500.0,0.0001327,2]
[401970023,1768428632674,-500.0,0.0001327,2]
[401970024,1768428632683,-500.0,0.0001327,2]
[401970025,1768428632691,-280.43499376,0.00013271,2]
[401970026,1768428632702,-9156.50311333,0.00013272,2]
[401970035,1768428638577,-7634.95212254,0.00013272,2]
[401970036,1768428638589,-33208.54476413,0.00013272,2]
[401970037,1768428638598,-500.0,0.00013273,2]
[401970038,1768428638607,-524.41105261,0.00013273,2]
[401970039,1768428638616,-500.0,0.00013273,2]
[401970040,1768428638624,-500.0,0.00013273,2]
[401970041,1768428638634,-500.0,0.00013273,2]
[401970042,1768428638643,-489.48889858,0.00013273,2]
[401970043,1768428638652,-500.0,0.00013273,2]
[401970044,1768428638661,-500.0,0.00013273,2]
[401970045,1768428638670,-394.52826302,0.00013273,2]
[401970046,1768428638679,-326.76109943,0.00013273,2]
[401970047,1768428638688,-500.0,0.00013273,2]
[401970048,1768428638699,-500.0,0.00013273,2]
[401970049,1768428638710,-500.0,0.00013273,2]
[401970050,1768428638719,-500.0,0.00013273,2]
[401970051,1768428638727,-500.0,0.00013273,2]
[401970052,1768428638736,-500.0,0.00013273,2]
[401970053,1768428638746,-500.0,0.00013273,2]
[401970054,1768428638754,-500.0,0.00013273,2]
[401970055,1768428638763,-500.0,0.00013273,2]
[401970056,1768428638772,-500.0,0.00013273,2]
[401970057,1768428638781,-648.56695785,0.00013273,2]
[401970058,1768428638790,-500.0,0.00013273,2]
[401970059,1768428638800,-500.0,0.00013273,2]
[401970060,1768428638809,-500.0,0.00013273,2]
[401970061,1768428638818,-500.0,0.00013273,2]
[401970062,1768428638827,-500.0,0.00013273,2]
[401970063,1768428638836,-518.87817295,0.00013698,2]
[401970064,1768428638845,-453.8287473,0.00013698,2]
[401970065,1768428638855,-504.29229129,0.00013698,2]
[401970066,1768428638864,-500.0,0.00013698,2]
[401970067,1768428638873,-500.0,0.00013698,2]
[401970068,1768428638882,-500.0,0.00013698,2]
[401970069,1768428638892,-559.52204836,0.00013698,2]
[401970070,1768428638901,-931.46,0.00013698,2]
[401970071,1768428638910,-931.46,0.00013698,2]
[401970072,1768428638920,-931.46,0.00013698,2]
[401970073,1768428638929,-931.46,0.00013698,2]
[401970074,1768428638939,-931.46,0.00013698,2]
[401970075,1768428638948,-500.0,0.00013698,2]
[401970076,1768428638958,-500.0,0.00013698,2]
[401970077,1768428638967,-500.0,0.00013698,2]
[401970078,1768428638976,-500.0,0.00013698,2]
[401970079,1768428638985,-500.0,0.00013699,2]
[401970080,1768428638995,-500.0,0.00013699,2]
[401970081,1768428639004,-500.0,0.00013699,2]
[401970082,1768428639014,-500.0,0.00013699,2]
[401970083,1768428639023,-500.0,0.00013699,2]
[401970084,1768428639033,-500.0,0.00013699,2]
[401970085,1768428639042,-500.0,0.00013699,2]
[401970086,1768428639051,-216.76955041,0.00013699,2]
[401970087,1768428639060,-1000.0,0.00013821,2]
[401970088,1768428639069,-1000.0,0.00013821,2]
[401970089,1768428639078,-1000.0,0.00013821,2]
[401970090,1768428639088,-1000.0,0.00013821,2]
[401970091,1768428639097,-1000.0,0.00013821,2]
[401970092,1768428639110,-1000.0,0.00013821,2]
[401970093,1768428639119,-500.0,0.0001397,2]
[401970094,1768428639129,-300.0,0.00013971,2]
[401970095,1768428639139,-300.0,0.00013971,2]
[401970096,1768428639148,-300.0,0.00013971,2]
[401970097,1768428639158,-300.0,0.00013971,2]
[401970098,1768428639167,-300.0,0.00013971,2]
[401970099,1768428639177,-300.0,0.00013971,2]
[401970100,1768428639188,-300.0,0.00013971,2]
[401970101,1768428639197,-300.0,0.00013971,2]
[401970102,1768428639207,-300.0,0.00013971,2]
[401970103,1768428639217,-300.0,0.00013971,2]
[401970104,1768428639227,-300.0,0.00013971,2]
[401970105,1768428639237,-300.0,0.00013971,2]
[401970106,1768428639247,-300.0,0.00013971,2]
[401970107,1768428639256,-300.0,0.00013971,2]
[401970108,1768428639266,-300.0,0.00013971,2]
[401970109,1768428639276,-323.8476233,0.00014247,2]
[401970110,1768428639285,-1000.0,0.00014247,2]
[401970111,1768428639295,-1000.0,0.00014247,2]
[401970112,1768428639305,-1000.0,0.00014247,2]
[401970113,1768428639315,-819.68437302,0.00014247,2]
[401970114,1768428639324,-544.67516775,0.00014247,2]
[401970115,1768428639334,-600.0,0.00014249,2]
[401970116,1768428639343,-1500.0,0.00014368,2]
[401970117,1768428639356,-1500.0,0.00014368,2]
[401970118,1768428639366,-1500.0,0.00014368,2]
[401970119,1768428639375,-1500.0,0.00014368,2]
[401970120,1768428639384,-1500.0,0.00014368,2]
[401970121,1768428639395,-1500.0,0.00014368,2]
[401970122,1768428639404,-420.0,0.00014443,2]
[401970123,1768428639413,-1680.0,0.00014489,2]
[401970124,1768428639424,-413.08851932,0.00014682,2]
[401970125,1768428639433,-1500.0,0.00014795,2]
[401970126,1768428639443,-1500.0,0.00014795,2]
[401970127,1768428639452,-1500.0,0.00014795,2]
[401970128,1768428639461,-2000.0,0.00014916,2]
[401970129,1768428639470,-2000.0,0.00014916,2]
[401970130,1768428639479,-2000.0,0.00014916,2]
[401970131,1768428639489,-2000.0,0.00014916,2]
[401970132,1768428639498,-2000.0,0.00014916,2]
[401970133,1768428639507,-2000.0,0.00014916,2]
[401970134,1768428639516,-800.0,0.00015068,2]
[401970135,1768428639525,-2000.0,0.00015342,2]
[401970136,1768428639535,-2000.0,0.00015342,2]
[401970137,1768428639544,-2000.0,0.00015342,2]
[401970138,1768428639553,-469.37,0.00015454,3]
[401970139,1768428639562,-234.69,0.00015454,3]
[401970140,1768428639571,-704.07,0.00015454,3]
[401970141,1768428639581,-5000.0,0.00015463,2]
[401970142,1768428639590,-2500.0,0.00015464,2]
[401970143,1768428639601,-1892.75982988,0.00015464,2]
[401970144,1768428639610,-2500.0,0.00015464,2]
[401970145,1768428639621,-2500.0,0.00015464,2]
[401970146,1768428639631,-1417.48910491,0.00015464,2]
[401970147,1768428639641,-2500.0,0.00015464,2]
[401970148,1768428639651,-720.0,0.00015674,2]
[401970149,1768428639660,-8540.05724789,0.00015817,2]
[401970150,1768428639671,-587.0,0.00015836,2]
[401970151,1768428639681,-2500.0,0.0001589,2]
[401970152,1768428639692,-2500.0,0.0001589,2]
[401970153,1768428639703,-2500.0,0.0001589,2]
[401970154,1768428639712,-250.0,0.00015999,2]
[401970155,1768428639721,-3000.0,0.00016012,2]
[401970156,1768428639730,-3000.0,0.00016012,2]
[401970157,1768428639739,-3000.0,0.00016012,2]
[401970158,1768428639749,-2699.34641428,0.00016012,2]
[401970159,1768428639759,-1600.0,0.00016164,2]
[401970160,1768428639768,-500.0,0.00016438,2]
[401970161,1768428639781,-500.0,0.00016438,2]
[401970162,1768428639790,-500.0,0.00016438,2]
[401970163,1768428639800,-500.0,0.00016438,2]
[401970164,1768428639810,-182.41528888,0.00016438,2]
[401970165,1768428639820,-500.0,0.00016438,2]
[401970166,1768428639830,-595.30780858,0.00016438,2]
[401970167,1768428639839,-200.0,0.00016438,2]
[401970168,1768428639848,-3000.0,0.00016438,2]
[401970169,1768428639857,-3000.0,0.00016438,2]
[401970170,1768428639866,-3000.0,0.00016438,2]
[401970171,1768428639875,-260.29560408,0.00016438,2]
[401970172,1768428639885,-3088.14205975,0.0001656,2]
[401970173,1768428639894,-3500.0,0.0001656,2]
[401970174,1768428639904,-3500.0,0.0001656,2]
[401970175,1768428639913,-476.10202226,0.00016682,2]
[401970176,1768428639923,-938.74,0.00016824,3]